Workbook

Sheet 农村低保 （取暖补贴）
A1: 西岔镇2025年农村低保金发放表（取暖补贴）
A2: 公示单位：
A3: 序号 | B3: 户主姓名 | C3: 住址 | D3: 低保类别 | E3: 享受人数 | F3: 保障标准 | G3: 家庭保障 救助金额 | H3: 持卡人姓名 | I3: 备注
A4: =MAX($A$3:A3)+1 -> 1 | B4: 宁三十生 | C4: 新康村 | D4: 三类 | E4: 4 | F4: 360 | G4: =E4*F4 -> 1440 | H4: 宁三十生 | I4: 2021年1-4批
A5: =MAX($A$3:A4)+1 -> 2 | B5: 宁明兴 | C5: 新康村 | D5: 三类 | E5: 4 | F5: 360 | G5: 1440 | H5: 宁明兴 | I5: 2021年1-4批
A6: =MAX($A$3:A5)+1 -> 3 | B6: 陈孟头 | C6: 新康村 | D6: 二类 | E6: 1 | F6: 360 | G6: 360 | H6: 陈孟头 | I6: 2021年1-4批
A7: =MAX($A$3:A6)+1 -> 4 | B7: 桑菊先 | C7: 新康村 | D7: 二类 | E7: 1 | F7: 360 | G7: 360 | H7: 鲁志俊 | I7: 2021年1-4批
A8: =MAX($A$3:A7)+1 -> 5 | B8: 房高林 | C8: 新康村 | D8: 二类 | E8: 5 | F8: 360 | G8: 1800 | H8: 房高林 | I8: 2021年1-4批
A9: =MAX($A$3:A8)+1 -> 6 | B9: 仇忠海 | C9: 新康村 | D9: 一类 | E9: 2 | F9: 360 | G9: 720 | H9: 仇忠海 | I9: 2021年1-4批
A10: =MAX($A$3:A9)+1 -> 7 | B10: 薛许琴 | C10: 新康村 | D10: 二类 | E10: 1 | F10: 360 | G10: 360 | H10: 薛许琴 | I10: 2021年1-4批
A11: =MAX($A$3:A10)+1 -> 8 | B11: 韩尖得 | C11: 新康村 | D11: 一类 | E11: 3 | F11: 360 | G11: 1080 | H11: 韩尖得 | I11: 2021年1-4批
A12: =MAX($A$3:A11)+1 -> 9 | B12: 李新平 | C12: 新康村 | D12: 二类 | E12: 1 | F12: 360 | G12: =E12*F12 -> 360 | H12: 李新平 | I12: 2021年5-7批
A13: =MAX($A$3:A12)+1 -> 10 | B13: 尚来生 | C13: 新康村 | D13: 二类 | E13: 1 | F13: 360 | G13: 360 | H13: 尚来生 | I13: 2021年5-7批
A14: =MAX($A$3:A13)+1 -> 11 | B14: 仇平生 | C14: 新康村 | D14: 二类 | E14: 2 | F14: 360 | G14: 720 | H14: 仇平生 | I14: 2021年5-7批
A15: =MAX($A$3:A14)+1 -> 12 | B15: 仇黑黑 | C15: 新康村 | D15: 二类 | E15: 2 | F15: 360 | G15: 720 | H15: 仇黑黑 | I15: 2021年5-7批
A16: =MAX($A$3:A15)+1 -> 13 | B16: 刘清成 | C16: 新康村 | D16: 三类 | E16: 5 | F16: 360 | G16: 1800 | H16: 刘清成 | I16: 2021年5-7批
A17: =MAX($A$3:A16)+1 -> 14 | B17: 韩新民 | C17: 新康村 | D17: 三类 | E17: 3 | F17: 360 | G17: 1080 | H17: 韩剑生 | I17: 2021年5-7批
A18: =MAX($A$3:A17)+1 -> 15 | B18: 张革命来 | C18: 新康村 | D18: 三类 | E18: 2 | F18: 360 | G18: 720 | H18: 张革命来 | I18: 2021年5-7批
A19: =MAX($A$3:A18)+1 -> 16 | B19: 虎明 | C19: 新康村 | D19: 一类 | E19: 1 | F19: 360 | G19: 360 | H19: 虎明 | I19: 2021年5-7批
A20: =MAX($A$3:A19)+1 -> 17 | B20: 杨全红 | C20: 新康村 | D20: 二类 | E20: 5 | F20: 360 | G20: 1800 | H20: 杨全红 | I20: 2021年5-7批
A21: =MAX($A$3:A20)+1 -> 18 | B21: 李麦九 | C21: 新康村 | D21: 一类 | E21: 1 | F21: 360 | G21: 360 | H21: 李麦九 | I21: 2021年5-7批
A22: =MAX($A$3:A21)+1 -> 19 | B22: 宁四得 | C22: 新康村 | D22: 二类 | E22: 2 | F22: 360 | G22: 720 | H22: 宁四得 | I22: 2021年5-7批
A23: =MAX($A$3:A22)+1 -> 20 | B23: 孔金新宝 | C23: 新康村 | D23: 四类 | E23: 7 | F23: 360 | G23: 2520 | H23: 孔金新宝 | I23: 2021年5-7批
A24: =MAX($A$3:A23)+1 -> 21 | B24: 白吉措 | C24: 新康村 | D24: 二类 | E24: 4 | F24: 360 | G24: 1440 | H24: 白吉措 | I24: 2021年5-7批
A25: =MAX($A$3:A24)+1 -> 22 | B25: 杨兰女 | C25: 新康村 | D25: 二类 | E25: 2 | F25: 360 | G25: 720 | H25: 曹海龙 | I25: 2021年5-7批
A26: =MAX($A$3:A25)+1 -> 23 | B26: 杨九巴 | C26: 新康村 | D26: 二类 | E26: 1 | F26: 360 | G26: 360 | H26: 杨九巴 | I26: 2021年5-7批
A27: =MAX($A$3:A26)+1 -> 24 | B27: 李兰交 | C27: 新康村 | D27: 二类 | E27: 7 | F27: 360 | G27: 2520 | H27: 李兰交 | I27: 2021年5-7批
A28: =MAX($A$3:A27)+1 -> 25 | B28: 王权龙 | C28: 新康村 | D28: 一类 | E28: 1 | F28: 360 | G28: 360 | H28: 王权龙 | I28: 2021年5-7批
A29: =MAX($A$3:A28)+1 -> 26 | B29: 贡宝嘉 | C29: 新康村 | D29: 一类 | E29: 1 | F29: 360 | G29: 360 | H29: 贡宝嘉 | I29: 2021年5-7批
A30: =MAX($A$3:A29)+1 -> 27 | B30: 杨四闹 | C30: 新康村 | D30: 三类 | E30: 5 | F30: 360 | G30: 1800 | H30: 杨四闹 | I30: 2022年第一批
A31: =MAX($A$3:A30)+1 -> 28 | B31: 余吉成 | C31: 新康村 | D31: 二类 | E31: 1 | F31: 360 | G31: 360 | H31: 余吉成 | I31: 2022年第一批
A32: =MAX($A$3:A31)+1 -> 29 | B32: 杨长庆 | C32: 新康村 | D32: 二类 | E32: 5 | F32: 360 | G32: 1800 | H32: 杨长庆 | I32: 2022年第一批
A33: =MAX($A$3:A32)+1 -> 30 | B33: 闵次儿族 | C33: 新康村 | D33: 二类 | E33: 2 | F33: 360 | G33: 720 | H33: 金来义 | I33: 2022年第一批
A34: =MAX($A$3:A33)+1 -> 31 | B34: 张军生 | C34: 新康村 | D34: 一类 | E34: 1 | F34: 360 | G34: 360 | H34: 张军生 | I34: 2022年第一批
A35: =MAX($A$3:A34)+1 -> 32 | B35: 韩百家明 | C35: 新康村 | D35: 三类 | E35: 2 | F35: 360 | G35: 720 | H35: 韩百家明 | I35: 2022年第一批
A36: =MAX($A$3:A35)+1 -> 33 | B36: 韩菊红 | C36: 新康村 | D36: 三类 | E36: 1 | F36: 360 | G36: 360 | H36: 韩菊红 | I36: 2022年第一批
A37: =MAX($A$3:A36)+1 -> 34 | B37: 王先古 | C37: 新康村 | D37: 二类 | E37: 5 | F37: 360 | G37: 1800 | H37: 王先古 | I37: 2022年第二批
A38: =MAX($A$3:A37)+1 -> 35 | B38: 年四斤 | C38: 新康村 | D38: 一类 | E38: 2 | F38: 360 | G38: 720 | H38: 年四斤 | I38: 2022年第二批
A39: =MAX($A$3:A38)+1 -> 36 | B39: 毛小学 | C39: 新康村 | D39: 二类 | E39: 1 | F39: 360 | G39: 360 | H39: 毛小学 | I39: 2022年第二批
A40: =MAX($A$3:A39)+1 -> 37 | B40: 张永明 | C40: 新康村 | D40: 二类 | E40: 1 | F40: 360 | G40: 360 | H40: 张永明 | I40: 2022年第二批
A41: =MAX($A$3:A40)+1 -> 38 | B41: 尹汉明 | C41: 新康村 | D41: 一类 | E41: 1 | F41: 360 | G41: 360 | H41: 尹汉明 | I41: 2022年第二批
A42: =MAX($A$3:A41)+1 -> 39 | B42: 袁明 | C42: 新康村 | D42: 二类 | E42: 1 | F42: 360 | G42: 360 | H42: 袁明 | I42: 2022年第二批
A43: =MAX($A$3:A42)+1 -> 40 | B43: 李小女 | C43: 新康村 | D43: 一类 | E43: 1 | F43: 360 | G43: 360 | H43: 李小女 | I43: 2022年第二批
A44: =MAX($A$3:A43)+1 -> 41 | B44: 杜民张 | C44: 新康村 | D44: 三类 | E44: 6 | F44: 360 | G44: 2160 | H44: 杜民张 | I44: 2022年第二批
A45: =MAX($A$3:A44)+1 -> 42 | B45: 李先爱 | C45: 新康村 | D45: 二类 | E45: 1 | F45: 360 | G45: 360 | H45: 刘文海 | I45: 2022年第二批
A46: =MAX($A$3:A45)+1 -> 43 | B46: 周石石 | C46: 新康村 | D46: 一类 | E46: 1 | F46: 360 | G46: 360 | H46: 周石石 | I46: 2022年第二批
A47: =MAX($A$3:A46)+1 -> 44 | B47: 尹成海 | C47: 新康村 | D47: 三类 | E47: 4 | F47: 360 | G47: 1440 | H47: 尹成海 | I47: 2022年第二批
A48: =MAX($A$3:A47)+1 -> 45 | B48: 尹海旺 | C48: 新康村 | D48: 二类 | E48: 3 | F48: 360 | G48: 1080 | H48: 尹海旺 | I48: 2022.8月新增
A49: =MAX($A$3:A48)+1 -> 46 | B49: 孔金各 | C49: 新康村 | D49: 二类 | E49: 2 | F49: 360 | G49: 720 | H49: 孔金各 | I49: 2022年第三批
A50: =MAX($A$3:A49)+1 -> 47 | B50: 尹青成保 | C50: 新康村 | D50: 二类 | E50: 1 | F50: 360 | G50: 360 | H50: 尹青成保 | I50: 2022年第三批
A51: =MAX($A$3:A50)+1 -> 48 | B51: 沈五月生 | C51: 新康村 | D51: 二类 | E51: 1 | F51: 360 | G51: 360 | H51: 沈五月生 | I51: 2022年第三批
A52: =MAX($A$3:A51)+1 -> 49 | B52: 虎六斤 | C52: 新康村 | D52: 二类 | E52: 7 | F52: 360 | G52: 2520 | H52: 虎六斤 | I52: 2022年第三批
A53: =MAX($A$3:A52)+1 -> 50 | B53: 杨海成 | C53: 新康村 | D53: 二类 | E53: 1 | F53: 360 | G53: 360 | H53: 杨海成 | I53: 2022年第三批
A54: =MAX($A$3:A53)+1 -> 51 | B54: 刘代女 | C54: 新康村 | D54: 三类 | E54: 1 | F54: 360 | G54: 360 | H54: 刘代女 | I54: 2022年第三批
A55: =MAX($A$3:A54)+1 -> 52 | B55: 张青朝 | C55: 新康村 | D55: 二类 | E55: 4 | F55: 360 | G55: 1440 | H55: 张青朝 | I55: 2022年第三批
A56: =MAX($A$3:A55)+1 -> 53 | B56: 刘成生 | C56: 新康村 | D56: 二类 | E56: 3 | F56: 360 | G56: 1080 | H56: 刘成生 | I56: 2022年第三批
A57: =MAX($A$3:A56)+1 -> 54 | B57: 张瑞成 | C57: 新康村 | D57: 一类 | E57: 1 | F57: 360 | G57: 360 | H57: 张瑞成 | I57: 2022.10月新增
A58: =MAX($A$3:A57)+1 -> 55 | B58: 杨小兵 | C58: 新康村 | D58: 一类 | E58: 1 | F58: 360 | G58: =E58*F58 -> 360 | H58: 杨小兵 | I58: 2022.11月新增
A59: =MAX($A$3:A58)+1 -> 56 | B59: 商生保 | C59: 新康村 | D59: 三类 | E59: 2 | F59: 360 | G59: 720 | H59: 商生保 | I59: 2022年第四批
A60: =MAX($A$3:A59)+1 -> 57 | B60: 王干地 | C60: 新康村 | D60: 一类 | E60: 1 | F60: 360 | G60: 360 | H60: 王干地 | I60: 2022年第四批
A61: =MAX($A$3:A60)+1 -> 58 | B61: 谢旦板 | C61: 新康村 | D61: 一类 | E61: 1 | F61: 360 | G61: 360 | H61: 谢旦板 | I61: 2022年第四批
A62: =MAX($A$3:A61)+1 -> 59 | B62: 桑居夫 | C62: 新康村 | D62: 二类 | E62: 3 | F62: 360 | G62: 1080 | H62: 桑居夫 | I62: 2022年第四批
A63: =MAX($A$3:A62)+1 -> 60 | B63: 周新朗 | C63: 新康村 | D63: 三类 | E63: 4 | F63: 360 | G63: 1440 | H63: 周新朗 | I63: 2022年第四批
A64: =MAX($A$3:A63)+1 -> 61 | B64: 杨仁恩 | C64: 新康村 | D64: 二类 | E64: 2 | F64: 360 | G64: 720 | H64: 杨仁恩 | I64: 2022.12月新增
A65: =MAX($A$3:A64)+1 -> 62 | B65: 关菊桂 | C65: 新康村 | D65: 一类 | E65: 2 | F65: 360 | G65: 720 | H65: 关菊桂 | I65: 2022年第五批
A66: =MAX($A$3:A65)+1 -> 63 | B66: 杨厚得 | C66: 新康村 | D66: 二类 | E66: 3 | F66: 360 | G66: 1080 | H66: 杨厚得 | I66: 2022年第五批
A67: =MAX($A$3:A66)+1 -> 64 | B67: 刘吉生 | C67: 新康村 | D67: 二类 | E67: 2 | F67: 360 | G67: 720 | H67: 刘岳平 | I67: 2022年第五批
A68: =MAX($A$3:A67)+1 -> 65 | B68: 虎利亚 | C68: 新康村 | D68: 三类 | E68: 3 | F68: 360 | G68: 1080 | H68: 虎利亚 | I68: 2022年第五批
A69: =MAX($A$3:A68)+1 -> 66 | B69: 黄军平 | C69: 新康村 | D69: 二类 | E69: 4 | F69: 360 | G69: 1440 | H69: 黄军平 | I69: 2022年第五批
A70: =MAX($A$3:A69)+1 -> 67 | B70: 杨茂茂 | C70: 新康村 | D70: 一类 | E70: 3 | F70: 360 | G70: 1080 | H70: 杨茂茂 | I70: 2022年第五批
A71: =MAX($A$3:A70)+1 -> 68 | B71: 王郭成 | C71: 新康村 | D71: 一类 | E71: 1 | F71: 360 | G71: 360 | H71: 王郭成 | I71: 2023年第五批
A72: =MAX($A$3:A71)+1 -> 69 | B72: 何召理 | C72: 新康村 | D72: 二类 | E72: 2 | F72: 360 | G72: 720 | H72: 何召理 | I72: 2022年第五批
A73: =MAX($A$3:A72)+1 -> 70 | B73: 本先女 | C73: 新康村 | D73: 三类 | E73: 3 | F73: 360 | G73: 1080 | H73: 本先女 | I73: 2022年第五批
A74: =MAX($A$3:A73)+1 -> 71 | B74: 孔平仁 | C74: 新康村 | D74: 二类 | E74: 3 | F74: 360 | G74: 1080 | H74: 孔平仁 | I74: 2022年第五批
A75: =MAX($A$3:A74)+1 -> 72 | B75: 孔扎西 | C75: 新康村 | D75: 二类 | E75: 1 | F75: 360 | G75: 360 | H75: 孔本四代 | I75: 2022年第五批
A76: =MAX($A$3:A75)+1 -> 73 | B76: 孔旦儿九 | C76: 新康村 | D76: 一类 | E76: 2 | F76: 360 | G76: 720 | H76: 孔旦儿九 | I76: 2022年第五批
A77: =MAX($A$3:A76)+1 -> 74 | B77: 石者也措 | C77: 新康村 | D77: 二类 | E77: 1 | F77: 360 | G77: 360 | H77: 尹英西 | I77: 2022年第五批
A78: =MAX($A$3:A77)+1 -> 75 | B78: 赵喜云 | C78: 新康村 | D78: 二类 | E78: 3 | F78: 360 | G78: 1080 | H78: 谈水红 | I78: 2022年第五批
A79: =MAX($A$3:A78)+1 -> 76 | B79: 杨海木草 | C79: 新康村 | D79: 二类 | E79: 1 | F79: 360 | G79: 360 | H79: 杨海木草 | I79: 2022年第五批
A80: =MAX($A$3:A79)+1 -> 77 | B80: 石江平 | C80: 新康村 | D80: 三类 | E80: 7 | F80: 360 | G80: 2520 | H80: 石江平 | I80: 2022年第五批
A81: =MAX($A$3:A80)+1 -> 78 | B81: 韩战军 | C81: 新康村 | D81: 三类 | E81: 6 | F81: 360 | G81: 2160 | H81: 韩战军 | I81: 2022年第五批
A82: =MAX($A$3:A81)+1 -> 79 | B82: 尚惠庆 | C82: 新康村 | D82: 二类 | E82: 1 | F82: 360 | G82: 360 | H82: 姚正合 | I82: 2022年第六批
A83: =MAX($A$3:A82)+1 -> 80 | B83: 王草草 | C83: 新康村 | D83: 一类 | E83: 1 | F83: 360 | G83: 360 | H83: 王草草 | I83: 2022年第六批
A84: =MAX($A$3:A83)+1 -> 81 | B84: 薛小军 | C84: 新康村 | D84: 一类 | E84: 1 | F84: 360 | G84: 360 | H84: 薛小军 | I84: 2022年第六批
A85: =MAX($A$3:A84)+1 -> 82 | B85: 韩彤 | C85: 新康村 | D85: 三类 | E85: 4 | F85: 360 | G85: 1440 | H85: 韩彤 | I85: 2022年第六批
A86: =MAX($A$3:A85)+1 -> 83 | B86: 韩安全 | C86: 新康村 | D86: 二类 | E86: 1 | F86: 360 | G86: 360 | H86: 韩安全 | I86: 2022年第六批
A87: =MAX($A$3:A86)+1 -> 84 | B87: 杨看能 | C87: 新康村 | D87: 二类 | E87: 6 | F87: 360 | G87: 2160 | H87: 杨看能 | I87: 2022年第六批
A88: =MAX($A$3:A87)+1 -> 85 | B88: 余白玛仁增 | C88: 新康村 | D88: 三类 | E88: 4 | F88: 360 | G88: 1440 | H88: 余白玛仁增 | I88: 2022年第六批
A89: =MAX($A$3:A88)+1 -> 86 | B89: 余下拉 | C89: 新康村 | D89: 二类 | E89: 1 | F89: 360 | G89: 360 | H89: 余下拉 | I89: 2022年第十批
A90: =MAX($A$3:A89)+1 -> 87 | B90: 金青莲 | C90: 新康村 | D90: 二类 | E90: 6 | F90: 360 | G90: 2160 | H90: 金青莲 | I90: 2022年第十批
A91: =MAX($A$3:A90)+1 -> 88 | B91: 余冬慧 | C91: 新康村 | D91: 一类 | E91: 1 | F91: 360 | G91: 360 | H91: 余洋权 | I91: 2022年第一批
A92: =MAX($A$3:A91)+1 -> 89 | B92: 仇高兴 | C92: 新康村 | D92: 二类 | E92: 1 | F92: 360 | G92: =E92*F92 -> 360 | H92: 仇高兴 | I92: 2023.6月新增
B93: 仇尖娃 | C93: 新康村 | D93: 二类 | E93: 1 | F93: 360 | G93: 360 | H93: 仇尖娃 | I93: 2023.6月新增
A94: =MAX($A$3:A93)+1 -> 90 | B94: 杨桑海儿 | C94: 新康村 | D94: 一类 | E94: 1 | F94: 360 | G94: 360 | H94: 杨桑海儿 | I94: 2023.6月新增
A95: =MAX($A$3:A94)+1 -> 91 | B95: 金长生 | C95: 新康村 | D95: 二类 | E95: 5 | F95: 360 | G95: 1800 | H95: 金长生 | I95: 2023.6月新增
A96: =MAX($A$3:A95)+1 -> 92 | B96: 虎金才 | C96: 新康村 | D96: 二类 | E96: 6 | F96: 360 | G96: 2160 | H96: 虎金才 | I96: 2023.6月新增
A97: =MAX($A$3:A96)+1 -> 93 | B97: 李那木切 | C97: 新康村 | D97: 二类 | E97: 4 | F97: 360 | G97: 1440 | H97: 李那木切 | I97: 2023.6月新增
A98: =MAX($A$3:A97)+1 -> 94 | B98: 韩文先 | C98: 新康村 | D98: 二类 | E98: 3 | F98: 360 | G98: 1080 | H98: 韩文先 | I98: 2023.6月新增
A99: =MAX($A$3:A98)+1 -> 95 | B99: 虎二权 | C99: 新康村 | D99: 二类 | E99: 6 | F99: 360 | G99: 2160 | H99: 虎二权 | I99: 2023.6月新增
A100: =MAX($A$3:A99)+1 -> 96 | B100: 虎东霞 | C100: 新康村 | D100: 二类 | E100: 4 | F100: 360 | G100: 1440 | H100: 虎东霞 | I100: 2023.6月新增
A101: =MAX($A$3:A100)+1 -> 97 | B101: 王加面 | C101: 新康村 | D101: 一类 | E101: 1 | F101: 360 | G101: 360 | H101: 王先拉 | I101: 2023.6月新增
A102: =MAX($A$3:A101)+1 -> 98 | B102: 张来平 | C102: 新康村 | D102: 一类 | E102: 3 | F102: 360 | G102: 1080 | H102: 张来平 | I102: 2023.7月新增
A103: =MAX($A$3:A102)+1 -> 99 | B103: 韩天宁 | C103: 新康村 | D103: 一类 | E103: 1 | F103: 360 | G103: 360 | H103: 韩天宁 | I103: 2023.7月新增
A104: =MAX($A$3:A103)+1 -> 100 | B104: 本严知九 | C104: 新康村 | D104: 一类 | E104: 1 | F104: 360 | G104: 360 | H104: 本严知九 | I104: 2023.7月新增
A105: =MAX($A$3:A104)+1 -> 101 | B105: 桑红琴 | C105: 新康村 | D105: 一类 | E105: 2 | F105: 360 | G105: 720 | H105: 桑红琴 | I105: 2023.7月新增
A106: =MAX($A$3:A105)+1 -> 102 | B106: 杨许汉 | C106: 新康村 | D106: 二类 | E106: 2 | F106: 360 | G106: 720 | H106: 杨许汉 | I106: 2023.7月舟曲转入
A107: =MAX($A$3:A106)+1 -> 103 | B107: 王开 | C107: 新康村 | D107: 二类 | E107: 4 | F107: 360 | G107: 1440 | H107: 王开 | I107: 2023.8月舟曲转入
A108: =MAX($A$3:A107)+1 -> 104 | B108: 王娄九 | C108: 新康村 | D108: 一类 | E108: 1 | F108: 360 | G108: 360 | H108: 王刚杰凑 | I108: 2023.8月舟曲转入
A109: =MAX($A$3:A108)+1 -> 105 | B109: 本旦兰九 | C109: 新康村 | D109: 一类 | E109: 1 | F109: 360 | G109: 360 | H109: 本旦兰九 | I109: 2023.8月新增
A110: =MAX($A$3:A109)+1 -> 106 | B110: 韩尖成 | C110: 新康村 | D110: 二类 | E110: 2 | F110: 360 | G110: 720 | H110: 韩尖成 | I110: 2023.9月新增
A111: =MAX($A$3:A110)+1 -> 107 | B111: 杨次大交 | C111: 新康村 | D111: 二类 | E111: 2 | F111: 360 | G111: 720 | H111: 杨次大交 | I111: 2023.9月新增
A112: =MAX($A$3:A111)+1 -> 108 | B112: 房海生 | C112: 新康村 | D112: 二类 | E112: 3 | F112: 360 | G112: 1080 | H112: 房海生 | I112: 2023.9月新增
A113: =MAX($A$3:A112)+1 -> 109 | B113: 金干衣 | C113: 新康村 | D113: 一类 | E113: 4 | F113: 360 | G113: 1440 | H113: 金干衣 | I113: 2023.9月新增
A114: =MAX($A$3:A113)+1 -> 110 | B114: 孔周家代 | C114: 新康村 | D114: 一类 | E114: 2 | F114: 360 | G114: 720 | H114: 孔周家代 | I114: 2023.9月新增
A115: =MAX($A$3:A114)+1 -> 111 | B115: 雷小林 | C115: 新康村 | D115: 二类 | E115: 2 | F115: 360 | G115: 720 | H115: 雷小林 | I115: 10月舟曲转入
A116: =MAX($A$3:A115)+1 -> 112 | B116: 余猪娃 | C116: 新康村 | D116: 二类 | E116: 1 | F116: 360 | G116: 360 | H116: 金加义 | I116: 10月舟曲转入
A117: =MAX($A$3:A116)+1 -> 113 | B117: 虎灵令 | C117: 新康村 | D117: 三类 | E117: 2 | F117: 360 | G117: 720 | H117: 虎灵令 | I117: 11月舟曲转入
A118: =MAX($A$3:A117)+1 -> 114 | B118: 孔忠平 | C118: 新康村 | D118: 二类 | E118: 6 | F118: 360 | G118: 2160 | H118: 孔忠平 | I118: 2023.11月新增
A119: =MAX($A$3:A118)+1 -> 115 | B119: 金闹主 | C119: 新康村 | D119: 二类 | E119: 6 | F119: 360 | G119: 2160 | H119: 金闹主 | I119: 2024.1月新增
A120: =MAX($A$3:A119)+1 -> 116 | B120: 高多主 | C120: 新康村 | D120: 二类 | E120: 3 | F120: 360 | G120: 1080 | H120: 高多主 | I120: 2024.1月新增
A121: =MAX($A$3:A120)+1 -> 117 | B121: 高代成 | C121: 新康村 | D121: 二类 | E121: 4 | F121: 360 | G121: 1440 | H121: 高代成 | I121: 2024.1月新增
A122: =MAX($A$3:A121)+1 -> 118 | B122: 杨贵平 | C122: 新康村 | D122: 二类 | E122: 2 | F122: 360 | G122: 720 | H122: 杨贵平 | I122: 2024.4月舟曲转入
A123: =MAX($A$3:A122)+1 -> 119 | B123: 杨狗娃 | C123: 新康村 | D123: 二类 | E123: 2 | F123: 360 | G123: 720 | H123: 杨狗娃 | I123: 2024.4月舟曲转入
A124: =MAX($A$3:A123)+1 -> 120 | B124: 孔当当喜 | C124: 新康村 | D124: 三类 | E124: 8 | F124: 360 | G124: 2880 | H124: 孔当当喜 | I124: 2024.4月新增
A125: =MAX($A$3:A124)+1 -> 121 | B125: 苏先主 | C125: 新康村 | D125: 二类 | E125: 1 | F125: 360 | G125: 360 | H125: 苏先主 | I125: 2024.4月新增
A126: =MAX($A$3:A125)+1 -> 122 | B126: 李浩婷 | C126: 新康村 | D126: 二类 | E126: 1 | F126: 360 | G126: 360 | H126: 李次儿 | I126: 2024.4月新增
A127: =MAX($A$3:A126)+1 -> 123 | B127: 房光明 | C127: 新康村 | D127: 二类 | E127: 1 | F127: 360 | G127: 360 | H127: 房光明 | I127: 2024.4月新增
A128: =MAX($A$3:A127)+1 -> 124 | B128: 仇高财 | C128: 新康村 | D128: 二类 | E128: 1 | F128: 360 | G128: 360 | H128: 仇高财 | I128: 2024.4月新增
A129: =MAX($A$3:A128)+1 -> 125 | B129: 虎照照 | C129: 新康村 | D129: 二类 | E129: 1 | F129: 360 | G129: 360 | H129: 虎照照 | I129: 2024.4月新增
A130: =MAX($A$3:A129)+1 -> 126 | B130: 本强兵 | C130: 新康村 | D130: 二类 | E130: 6 | F130: 360 | G130: 2160 | H130: 本强兵 | I130: 2024.6月新增
A131: =MAX($A$3:A130)+1 -> 127 | B131: 张刘艳 | C131: 新康村 | D131: 三类 | E131: 5 | F131: 360 | G131: 1800 | H131: 张刘艳 | I131: 2024.7月新增
A132: =MAX($A$3:A131)+1 -> 128 | B132: 刘宝贵 | C132: 新康村 | D132: 一类 | E132: 1 | F132: 360 | G132: 360 | H132: 刘宝贵 | I132: 2024.7月特困转低保
A133: =MAX($A$3:A132)+1 -> 129 | B133: 张军明 | C133: 新康村 | D133: 二类 | E133: 1 | F133: 360 | G133: 360 | H133: 张军军 | I133: 2024年9月城市低保调整
A134: =MAX($A$3:A133)+1 -> 130 | B134: 杨金兰 | C134: 新康村 | D134: 二类 | E134: 1 | F134: 360 | G134: 360 | H134: 李登平 | I134: 2024年9月城市低保调整
A135: =MAX($A$3:A134)+1 -> 131 | B135: 韩小童 | C135: 新康村 | D135: 二类 | E135: 1 | F135: 360 | G135: 360 | H135: 韩小童 | I135: 2024年9月城市低保调整
A136: =MAX($A$3:A135)+1 -> 132 | B136: 申青生保 | C136: 新康村 | D136: 二类 | E136: 2 | F136: 360 | G136: 720 | H136: 申青生保 | I136: 2024.10月新增
A137: =MAX($A$3:A136)+1 -> 133 | B137: 王老大 | C137: 新康村 | D137: 二类 | E137: 1 | F137: 360 | G137: 360 | H137: 王生 | I137: 2024.10月新增
A138: =MAX($A$3:A137)+1 -> 134 | B138: 余永果 | C138: 新康村 | D138: 三类 | E138: 6 | F138: 360 | G138: 2160 | H138: 余永果 | I138: 2024年11月新增
A139: =MAX($A$3:A138)+1 -> 135 | B139: 严应朝 | C139: 新康村 | D139: 三类 | E139: 6 | F139: 360 | G139: 2160 | H139: 严应朝 | I139: 2025年1月新增
A140: =MAX($A$3:A139)+1 -> 136 | B140: 王小玲 | C140: 新康村 | D140: 二类 | E140: 1 | F140: 360 | G140: 360 | H140: 王小玲 | I140: 2025年4月新增
A141: =MAX($A$3:A140)+1 -> 137 | B141: 杨成许 | C141: 新康村 | D141: 二类 | E141: 1 | F141: 360 | G141: 360 | H141: 杨成许 | I141: 2025年5月新增
A142: =MAX($A$3:A141)+1 -> 138 | B142: 袁永安 | C142: 新康村 | D142: 一类 | E142: 1 | F142: 360 | G142: 360 | H142: 袁永安 | I142: 2025年5月新增
A143: =MAX($A$3:A142)+1 -> 139 | B143: 房米阳 | C143: 新康村 | D143: 一类 | E143: 1 | F143: 360 | G143: 360 | H143: 桑林兰 | I143: 2025年6月城市低保调整
A144: =MAX($A$3:A143)+1 -> 140 | B144: 王卷方 | C144: 新康村 | D144: 二类 | E144: 1 | F144: 360 | G144: 360 | H144: 王卷方 | I144: 2025年7月新增
A145: =MAX($A$3:A144)+1 -> 141 | B145: 刘全兴 | C145: 新康村 | D145: 二类 | E145: 1 | F145: 360 | G145: 360 | H145: 刘全兴 | I145: 2025年8月新增
A146: =MAX($A$3:A145)+1 -> 142 | B146: 虎双成 | C146: 新康村 | D146: 二类 | E146: 2 | F146: 360 | G146: 720 | H146: 虎双成 | I146: 2025年9月新增
A147: 合计 | E147: =SUM(E4:E146) -> 360 | G147: =SUM(G4:G146) -> 129600

Sheet 农村特困（取暖补贴）
A1: 西岔镇2025年农村特困供养金发放公示表（取暖补贴）
A2: 公示单位： | K2: 公示时间：2025年9月12日-9月18日
A3: 序号 | B3: 所在镇 （中心社区） | C3: 户号 | D3: 村（社区） | E3: 供养人姓名 | F3: 享受人数 | G3: 自理能力情况 | H3: 发放标准/元 | I3: 实际发放金额/元 | J3: 帐户姓名 | K3: 备注
A4: 1 | B4: 西岔镇 | C4: 1 | D4: 新康村 | E4: 尚瓜子 | F4: 1 | G4: 部分丧失 | H4: 1860 | I4: =H4*F4*1*1 -> 1860 | J4: 尚瓜子 | K4: 2022.4新增
A5: 2 | B5: 西岔镇 | C5: 2 | D5: 新康村 | E5: 虎青德 | F5: 1 | G5: 全自理 | H5: 1860 | I5: 1860 | J5: 虎青德 | K5: 2022.4转入
A6: 3 | B6: 西岔镇 | C6: 3 | D6: 新康村 | E6: 苏青 | F6: 1 | G6: 全自理 | H6: 1860 | I6: 1860 | J6: 苏青 | K6: 2022.4转入
A7: 4 | B7: 西岔镇 | C7: 4 | D7: 新康村 | E7: 刘社各 | F7: 1 | G7: 全自理 | H7: 1860 | I7: 1860 | J7: 刘社各 | K7: 2022.6新增
A8: 5 | B8: 西岔镇 | C8: 5 | D8: 新康村 | E8: 韩福奎 | F8: 1 | G8: 全自理 | H8: 1860 | I8: 1860 | J8: 韩福奎 | K8: 2022.8新增
A9: 6 | B9: 西岔镇 | C9: 6 | D9: 新康村 | E9: 薛财林 | F9: 1 | G9: 全自理 | H9: 1860 | I9: 1860 | J9: 薛财林 | K9: 2022年第五批 4月转入
A10: 7 | B10: 西岔镇 | C10: 7 | D10: 新康村 | E10: 李马巴代 | F10: 1 | G10: 全自理 | H10: 1860 | I10: 1860 | J10: 李马巴代 | K10: 2023.6月新增
A11: 8 | B11: 西岔镇 | C11: 8 | D11: 新康村 | E11: 刘平福 | F11: 1 | G11: 全自理 | H11: 1860 | I11: 1860 | J11: 刘平福 | K11: 2023.6月新增
A12: 9 | B12: 西岔镇 | C12: 9 | D12: 新康村 | E12: 杨茂成 | F12: 1 | G12: 全自理 | H12: 1860 | I12: 1860 | J12: 杨茂成 | K12: 2023.6月新增
A13: 10 | B13: 西岔镇 | C13: 10 | D13: 新康村 | E13: 孟兴 | F13: 1 | G13: 全自理 | H13: 1860 | I13: 1860 | J13: 孟兴 | K13: 2023.6月新增
A14: 11 | B14: 西岔镇 | C14: 11 | D14: 新康村 | E14: 虎吉生 | F14: 1 | G14: 全自理 | H14: 1860 | I14: 1860 | J14: 虎吉生 | K14: 2023.6月新增
A15: 12 | B15: 西岔镇 | C15: 12 | D15: 新康村 | E15: 李宝 | F15: 1 | G15: 全自理 | H15: 1860 | I15: 1860 | J15: 李宝 | K15: 2023.7月新增
A16: 13 | B16: 西岔镇 | C16: 13 | D16: 新康村 | E16: 王云庆 | F16: 1 | G16: 全自理 | H16: 1860 | I16: 1860 | J16: 王云庆 | K16: 2022年第四批 7月新增
A17: 14 | B17: 西岔镇 | C17: 14 | D17: 新康村 | E17: 雷丁丁 | F17: 1 | G17: 全自理 | H17: 1860 | I17: 1860 | J17: 雷丁丁 | K17: 2022年第四批 7月新增
A18: 15 | B18: 西岔镇 | C18: 15 | D18: 新康村 | E18: 李高来 | F18: 1 | G18: 全自理 | H18: 1860 | I18: 1860 | J18: 李高来 | K18: 2022年第五批 7月转入
A19: 16 | B19: 西岔镇 | C19: 16 | D19: 新康村 | E19: 虎生 | F19: 1 | G19: 全自理 | H19: 1860 | I19: 1860 | J19: 虎生 | K19: 2023.9月新增
A20: 17 | B20: 西岔镇 | C20: 17 | D20: 新康村 | E20: 才占义 | F20: 1 | G20: 全自理 | H20: 1860 | I20: 1860 | J20: 才占义 | K20: 2022年第十批 10月转入
A21: 18 | B21: 西岔镇 | C21: 18 | D21: 新康村 | E21: 薛知会 | F21: 1 | G21: 全自理 | H21: 1860 | I21: 1860 | J21: 薛知会 | K21: 2024.1月新增
A22: 19 | B22: 西岔镇 | C22: 19 | D22: 新康村 | E22: 仇三兴 | F22: 1 | G22: 全自理 | H22: 1860 | I22: 1860 | J22: 仇三兴 | K22: 2024.1月新增
A23: 20 | B23: 西岔镇 | C23: 20 | D23: 新康村 | E23: 尹热舟 | F23: 1 | G23: 全自理 | H23: 1860 | I23: 1860 | J23: 尹热舟 | K23: 2024.4月新增
A24: 21 | B24: 西岔镇 | C24: 21 | D24: 新康村 | E24: 杨成龙 | F24: 1 | G24: 全自理 | H24: 1860 | I24: 1860 | J24: 杨成龙 | K24: 2024.4月新增
A25: 22 | B25: 西岔镇 | C25: 22 | D25: 新康村 | E25: 韩龙生 | F25: 1 | G25: 全自理 | H25: 1860 | I25: 1860 | J25: 韩龙生 | K25: 2024.4月新增
A26: 23 | B26: 西岔镇 | C26: 23 | D26: 新康村 | E26: 杨田贵 | F26: 1 | G26: 全自理 | H26: 1860 | I26: 1860 | J26: 杨田贵 | K26: 2024.4月新增
A27: 24 | B27: 西岔镇 | C27: 24 | D27: 新康村 | E27: 尚全平 | F27: 1 | G27: 全自理 | H27: 1860 | I27: 1860 | J27: 尚全平 | K27: 2024.4月新增
A28: 25 | B28: 西岔镇 | C28: 25 | D28: 新康村 | E28: 周学生 | F28: 1 | G28: 全自理 | H28: 1860 | I28: 1860 | J28: 周学生 | K28: 2024.4月新增
A29: 26 | B29: 西岔镇 | C29: 26 | D29: 新康村 | E29: 唐生生 | F29: 1 | G29: 全自理 | H29: 1860 | I29: 1860 | J29: 唐生生 | K29: 2024.6月新增
A30: 27 | B30: 西岔镇 | C30: 27 | D30: 新康村 | E30: 罗效忠 | F30: 1 | G30: 全自理 | H30: 1860 | I30: 1860 | J30: 罗效忠 | K30: 2024.7月新增
A31: 28 | B31: 西岔镇 | C31: 28 | D31: 新康村 | E31: 尹英西 | F31: 1 | G31: 全自理 | H31: 1860 | I31: 1860 | J31: 尹英西 | K31: 2024.7月新增
A32: 29 | B32: 西岔镇 | C32: 29 | D32: 新康村 | E32: 虎高义 | F32: 1 | G32: 全自理 | H32: 1860 | I32: 1860 | J32: 虎高义 | K32: 2025.1月新增
A33: 30 | B33: 西岔镇 | C33: 30 | D33: 新康村 | E33: 本熊保 | F33: 1 | G33: 全自理 | H33: 1860 | I33: 1860 | J33: 本熊保 | K33: 2025.4月新增
A34: 31 | B34: 西岔镇 | C34: 31 | D34: 新康村 | E34: 周秀来 | F34: 1 | G34: 全自理 | H34: 1860 | I34: 1860 | J34: 周秀来 | K34: 2025.4月新增
A35: 32 | B35: 西岔镇 | C35: 32 | D35: 新康村 | E35: 周海林 | F35: 1 | G35: 全自理 | H35: 1860 | I35: 1860 | J35: 周海林 | K35: 2025.6月新增
A36: 33 | B36: 西岔镇 | C36: 33 | D36: 新康村 | E36: 李青生 | F36: 1 | G36: 全自理 | H36: 1860 | I36: 1860 | J36: 李青生 | K36: 2025.6月新增
A37: 34 | B37: 西岔镇 | C37: 34 | D37: 新康村 | E37: 韩根子成 | F37: 1 | G37: 全自理 | H37: 1860 | I37: 1860 | J37: 韩根子成 | K37: 2025.6月新增
A38: 35 | B38: 西岔镇 | C38: 35 | D38: 新康村 | E38: 沈田夫 | F38: 1 | G38: 全自理 | H38: 1860 | I38: 1860 | J38: 沈田夫 | K38: 2025.6月新增
A39: 36 | B39: 西岔镇 | C39: 36 | D39: 新康村 | E39: 刘岳平 | F39: 1 | G39: 全自理 | H39: 1860 | I39: 1860 | J39: 刘岳平 | K39: 2025.6月新增
A40: 37 | B40: 西岔镇 | C40: 37 | D40: 新康村 | E40: 孔热子漫 | F40: 1 | G40: 全自理 | H40: 1860 | I40: 1860 | J40: 孔热子漫 | K40: 2025.6月新增
